bitfinex/quotes_ETHUSD_20260102
["timestamp","ask_amount","ask_price","bid_price","bid_amount"]
[1767381002658,6.48943946,3114.2,3113.5,3.90263129]
[1767381002860,9.70053701,3114.2,3113.5,3.90263129]
[1767381003067,6.48943946,3114.2,3113.5,3.90263129]
[1767381003475,3.21109755,3114.2,3113.5,3.90263129]
[1767381003672,3.21109755,3114.2,3113.5,6.29411586]
[1767381004173,4.05300693,3114.3,3113.5,9.50592209]
[1767381004374,9.58394331,3114.3,3113.5,2.39148457]
[1767381004584,2.31992945,3114.2,3113.3,3.21197636]
[1767381004751,2.31992945,3114.2,3113.4,3.77226086]
[1767381004947,3.21120066,3114.1,3113.4,0.56034609]
[1767381005787,2.31992945,3114.0,3113.4,0.56034609]
[1767381006013,2.31992945,3114.0,3113.2,5.60361105]
[1767381006179,3.21112373,3114.2,3113.4,5.60340403]
[1767381007181,2.32192945,3114.6,3113.5,2.39148457]
[1767381007397,2.31992945,3114.4,3113.2,3.21212657]
[1767381007609,0.04013485,3114.5,3113.2,3.77268768]
[1767381007610,2.31992945,3114.2,3113.2,3.77268768]
[1767381007811,2.31992945,3114.2,3113.3,3.21199577]
[1767381007996,2.31992945,3114.5,3113.3,2.39148457]
[1767381008196,0.843,3114.4,3113.5,2.39148457]
[1767381008500,3.16292945,3114.4,3113.5,2.39148457]
[1767381008702,3.16292945,3114.4,3113.5,2.95182529]
[1767381009509,6.37389106,3114.4,3113.6,3.21171634]
[1767381009903,6.37389106,3114.4,3113.5,6.16359479]
[1767381010102,6.37389106,3114.4,3113.2,2.95204568]
[1767381010103,2.31992945,3114.3,3113.2,2.95204568]
[1767381010299,2.36006816,3114.2,3113.4,3.21191337]
[1767381010502,2.36006816,3114.2,3113.1,0.001]
[1767381010800,2.31992945,3114.2,3113.1,0.001]
[1767381011508,2.31992945,3114.0,3113.1,0.001]
[1767381011682,3.19416253,3114.0,3113.1,0.001]
[1767381012207,2.31992945,3113.8,3113.1,0.001]
[1767381013211,5.53113011,3114.1,3113.1,2.39248457]
[1767381013422,9.58450593,3114.5,3113.1,2.39248457]
[1767381013597,3.27858004,3114.4,3113.4,2.39148457]
[1767381014111,3.21271762,3114.6,3113.5,2.39148457]
[1767381014805,2.31992945,3114.5,3113.4,0.842]
[1767381015009,2.31992945,3114.5,3113.3,4.05402582]
[1767381015205,2.31992945,3114.3,3113.4,2.39148457]
[1767381015607,2.31992945,3114.1,3113.2,0.23934846]
[1767381015779,2.31992945,3113.9,3113.1,0.001]
[1767381015978,3.16292945,3113.8,3113.1,0.001]
[1767381016718,2.31992945,3113.8,3113.1,0.001]
[1767381017985,6.37446649,3113.8,3113.1,0.001]
[1767381018715,9.58600353,3113.8,3113.1,0.001]
[1767381018911,1.88942299,3113.8,3113.1,2.39248457]
[1767381019112,0.843,3113.8,3113.1,2.39248457]
[1767381019315,4.05458207,3113.8,3113.1,2.39248457]
[1767381019481,7.26616414,3113.8,3113.1,2.39248457]
[1767381019688,4.05458207,3113.8,3113.1,2.39248457]
[1767381020117,7.26616414,3113.8,3113.1,2.39248457]
[1767381020317,8.31259613,3113.8,3113.1,2.39248457]
[1767381020614,5.10101406,3113.8,3113.1,2.39248457]
[1767381020818,8.31259613,3113.8,3113.1,2.39248457]
[1767381021317,2.36007461,3113.7,3112.6,0.001]
[1767381021524,2.31992945,3113.5,3112.6,0.001]
[1767381022103,2.31992945,3113.3,3112.6,0.001]
[1767381022423,0.843,3113.2,3112.6,0.001]
[1767381023690,4.02951294,3113.6,3112.6,2.39248457]
[1767381023889,3.2117526,3113.6,3112.6,2.39248457]
[1767381024127,3.2117526,3113.6,3112.7,5.60412954]
[1767381024334,3.2117526,3113.6,3113.0,0.001]
[1767381025214,0.843,3113.7,3113.0,2.39248457]
[1767381025414,0.843,3113.7,3113.0,2.63173303]
[1767381025800,4.05463028,3113.7,3113.0,2.63173303]
[1767381026006,2.32192945,3114.0,3113.0,2.63173303]
[1767381026213,2.32192945,3114.0,3113.1,2.39148457]
[1767381028256,3.21140691,3113.9,3113.1,2.39148457]
[1767381028648,3.21140691,3113.9,3113.1,5.60371136]
[1767381029430,2.32192945,3114.0,3113.1,9.7215823]
[1767381029630,2.32192945,3114.0,3113.2,2.3811466]
[1767381029631,5.53329428,3114.0,3113.2,2.3811466]
[1767381031016,8.74465911,3114.0,3113.2,2.3811466]
[1767381031217,2.45246133,3113.9,3113.0,0.001]
[1767381031552,2.41231875,3113.7,3113.0,0.001]
[1767381031714,2.41231875,3113.7,3113.0,3.21332817]
[1767381033028,2.41231875,3113.7,3113.0,0.001]
[1767381034022,5.62393958,3113.7,3113.0,0.001]
[1767381035415,2.41231875,3113.7,3113.0,2.3821466]
[1767381035613,2.41231875,3113.7,3113.0,5.59444406]
[1767381036313,5.62395332,3113.7,3113.0,2.3821466]
[1767381036712,0.04014645,3113.6,3113.0,2.3821466]
[1767381036916,5.62395332,3113.7,3113.0,2.3821466]
[1767381037847,2.4524652,3113.6,3113.0,0.001]
[1767381038143,2.4524652,3113.6,3112.6,0.001]
[1767381038144,2.41231875,3113.5,3112.6,0.001]
[1767381038728,2.45246649,3113.5,3112.6,0.001]
[1767381040057,2.41231875,3113.3,3113.0,0.001]
[1767381040256,2.41231875,3113.3,3112.6,0.001]
[1767381040257,3.29593516,3113.2,3112.6,0.001]
[1767381040466,3.21192265,3113.4,3112.6,2.3821466]
[1767381040754,2.41231875,3113.3,3112.6,2.3821466]
[1767381041142,2.41231875,3113.3,3112.6,0.001]
[1767381042454,5.62441343,3113.3,3112.6,2.3821466]
[1767381043549,8.83650811,3113.3,3112.6,2.3821466]
[1767381043755,0.88365081,3113.2,3112.6,2.3821466]
[1767381044346,0.88365081,3113.2,3112.3,2.3811466]
[1767381044347,2.41231875,3113.1,3112.3,2.3811466]
[1767381044657,2.41231875,3112.9,3112.0,2.3811466]
[1767381046637,3.21254176,3112.8,3112.0,2.3811466]
[1767381046835,2.41231875,3112.7,3111.8,0.001]
[1767381047041,2.73357293,3112.7,3111.4,3.21491932]
[1767381047469,2.73357293,3112.7,3111.5,3.21485446]
[1767381047672,2.73357293,3112.7,3112.5,0.001]
[1767381047968,2.41231875,3112.5,3111.5,3.21485446]
[1767381048167,2.41231875,3112.3,3111.6,3.21378059]
[1767381048374,2.41231875,3112.3,3111.5,3.21484977]
[1767381049176,5.62546434,3112.3,3111.5,0.001]
[1767381049363,2.41231875,3112.3,3111.5,0.001]
[1767381049565,5.62542405,3112.3,3111.5,0.001]
[1767381049757,2.41231875,3112.2,3111.5,0.001]
[1767381051580,5.62549453,3112.2,3111.5,0.001]
[1767381051763,2.41231875,3112.2,3111.5,0.001]
[1767381051969,5.62553346,3112.2,3111.5,2.3821466]
[1767381052482,2.41231875,3112.1,3111.0,0.001]
[1767381052802,2.41231875,3112.0,3110.6,5.5968934]
[1767381052975,0.94854738,3112.1,3110.6,5.5968934]
[1767381052976,2.41231875,3111.8,3110.6,5.5968934]
[1767381053152,0.843,3111.9,3110.7,3.2156941]
[1767381053153,2.41231875,3111.6,3110.7,3.2156941]
[1767381053553,5.62616688,3111.6,3110.7,3.2156941]
[1767381054477,5.62616688,3111.6,3110.7,0.001]
[1767381054478,8.84001501,3111.6,3110.7,0.001]
[1767381054852,2.41231875,3111.5,3110.7,0.001]
[1767381055484,2.41231875,3111.5,3111.0,0.001]
[1767381056080,2.41231875,3111.4,3110.7,0.001]
[1767381057374,3.25531875,3111.4,3110.7,0.001]
[1767381058363,4.16183631,3112.1,3110.7,0.001]
[1767381058364,2.41231875,3112.0,3110.7,2.3821466]
[1767381058682,2.41231875,3112.0,3110.9,2.3811466]
[1767381059054,0.002,3112.2,3110.9,2.3811466]
[1767381059793,0.002,3112.2,3111.1,2.44532038]
[1767381061553,0.002,3112.2,3111.3,2.44532038]
[1767381061758,0.002,3112.2,3111.4,2.44532038]
[1767381062062,0.002,3112.2,3111.6,2.44532038]
[1767381062359,0.00039342,3112.2,3111.6,2.44532038]
[1767381062900,0.00039342,3112.2,3111.2,6.42838776]
[1767381062901,2.42882965,3112.1,3111.2,3.21419388]
[1767381063081,2.42882965,3112.1,3111.2,8.87370814]
[1767381063283,0.00039342,3112.2,3111.4,2.44532038]
[1767381063594,0.00039342,3112.2,3111.4,5.65923118]
[1767381064890,0.00039342,3112.2,3111.5,2.44532038]
[1767381065399,2.42882965,3112.1,3111.0,2.44532038]
[1767381065711,2.42882965,3112.1,3111.4,3.21397962]
[1767381065894,0.00039342,3112.2,3111.5,3.33265192]
[1767381066374,5.64238588,3112.2,3111.4,3.21397962]
[1767381066697,2.42882965,3112.1,3111.4,3.21397962]
[1767381067197,0.00039342,3112.2,3111.4,5.6593]
[1767381067398,0.00039342,3112.2,3111.5,2.44532038]
[1767381067863,0.00039342,3112.2,3111.6,8.87288176]
[1767381068064,0.00039342,3112.2,3111.6,6.54638925]
[1767381068659,0.00039342,3112.2,3111.7,2.44532038]
[1767381068909,2.42882965,3112.6,3111.0,3.78]
[1767381069205,2.42882965,3112.1,3111.0,3.78]
[1767381069508,2.42882965,3111.9,3111.0,3.78]
[1767381069805,2.42882965,3111.7,3111.0,3.78]
[1767381070009,2.42882965,3111.6,3111.0,3.78]
[1767381070513,2.42882965,3111.6,3110.9,0.001]
[1767381070689,2.42882965,3111.6,3111.5,0.001]
[1767381070887,2.42882965,3111.6,3110.9,0.001]
[1767381071089,0.88563722,3111.5,3110.9,0.001]
[1767381071404,3.31446687,3111.5,3110.9,0.001]
[1767381071761,2.42882965,3111.4,3110.9,0.001]
[1767381072161,2.42882965,3111.2,3110.9,0.001]
[1767381074101,0.88563722,3111.5,3110.6,0.001]
[1767381074102,2.42882965,3111.0,3110.6,0.001]
[1767381075408,2.43082965,3112.2,3110.6,2.44632038]
[1767381075898,2.43082965,3112.2,3110.8,2.44532038]
[1767381076192,5.34231677,3113.4,3110.6,0.001]
[1767381076193,2.42882965,3113.1,3111.4,5.18231677]
[1767381076363,2.42882965,3112.9,3111.6,2.44532038]
[1767381078398,2.42882965,3112.7,3111.7,6.42735482]
[1767381079083,0.002,3112.2,3111.7,6.42735482]
[1767381080186,0.002,3112.2,3111.7,8.8726752]
[1767381080500,0.002,3112.2,3111.9,3.21347086]
[1767381082077,2.42882965,3112.7,3111.9,6.42694172]
[1767381083999,2.42882965,3112.7,3111.9,3.21347086]
[1767381084300,2.42882965,3112.6,3111.9,3.21347086]
[1767381084488,2.468989,3112.6,3111.9,3.21347086]
[1767381084813,2.42882965,3112.5,3111.6,6.42756138]
[1767381085381,2.42882965,3112.5,3111.6,8.87288176]
[1767381085983,2.43082965,3112.5,3111.6,8.87288176]
[1767381086682,0.002,3112.5,3111.9,2.44532038]
[1767381088627,2.60722244,3113.0,3111.9,2.44532038]
[1767381088628,2.36433947,3113.0,3111.9,2.44532038]
[1767381088928,2.40449495,3112.9,3112.0,7.31398206]
[1767381089634,2.36433947,3112.9,3112.0,7.31398206]
[1767381089797,2.36433947,3112.9,3112.0,4.10061446]
[1767381089995,2.36433947,3112.9,3112.0,7.31398206]
[1767381090937,2.36433947,3112.9,3112.0,9.66330481]
[1767381091119,2.36433947,3112.9,3112.1,3.31565323]
[1767381092638,2.36433947,3112.9,3112.2,2.34932275]
[1767381093127,2.48034614,3113.5,3112.7,2.34932275]
[1767381093817,2.48034614,3113.5,3112.6,3.21274818]
[1767381094016,2.47834614,3113.3,3112.6,5.56207093]
[1767381094216,0.002,3112.9,3112.6,5.56207093]
[1767381094417,0.002,3113.5,3112.7,2.34932275]
[1767381095133,0.002,3113.5,3112.9,2.34932275]
[1767381096225,2.48034614,3113.5,3112.7,3.2125949]
[1767381096416,2.48034614,3113.5,3112.7,7.06573163]
[1767381096619,0.002,3113.5,3112.8,2.34932275]
[1767381097212,0.002,3113.5,3112.9,3.21243856]
[1767381097418,2.48034614,3113.5,3112.8,5.56184495]
[1767381098223,2.48034614,3113.5,3112.7,0.64049176]
[1767381098656,2.48034614,3113.5,3112.8,3.21247731]
[1767381098794,2.48034614,3113.5,3112.8,4.15397055]
[1767381099731,2.48034614,3113.5,3112.8,6.5032933]
[1767381101928,0.002,3113.5,3112.9,2.34932275]
[1767381102806,0.002,3113.7,3112.9,2.34932275]
[1767381103012,3.32134614,3114.3,3113.3,2.34932275]
[1767381103212,3.32134614,3114.3,3113.4,2.58425502]
[1767381103429,2.47834614,3114.3,3113.4,2.58425502]
[1767381104052,5.68940194,3114.3,3113.5,2.34932275]
[1767381104255,2.47834614,3114.3,3113.5,2.34932275]
[1767381104752,5.68936972,3114.3,3113.5,2.34932275]
[1767381105062,2.48034614,3114.2,3113.5,2.34932275]
[1767381105370,2.48034614,3114.2,3113.4,3.21184135]
[1767381105539,2.47834614,3114.1,3113.4,3.21184135]
[1767381106040,0.002,3114.2,3113.6,3.21171634]
[1767381106226,2.48034614,3114.2,3113.1,2.34932275]
[1767381106422,2.48034614,3114.2,3112.8,0.94149324]
[1767381106423,2.47834614,3114.0,3112.8,0.94149324]
[1767381106627,2.47834614,3113.8,3112.6,0.001]
[1767381106869,0.24803461,3114.1,3112.6,0.001]
[1767381106870,2.47834614,3113.6,3112.6,0.001]
[1767381107024,2.47834614,3113.4,3112.1,2.34932275]
[1767381107223,2.47834614,3113.2,3112.1,2.34932275]
[1767381107428,0.24803461,3114.1,3112.1,2.34932275]
[1767381107429,2.47834614,3113.0,3112.1,2.34932275]
[1767381107648,3.32134614,3113.0,3112.1,2.34932275]
[1767381108021,5.6907847,3112.9,3112.1,2.34932275]
[1767381108220,5.6907847,3112.9,3112.1,5.56255741]
[1767381108746,5.6907847,3112.9,3112.1,2.34932275]
[1767381108946,6.6905835,3112.9,3112.1,2.34932275]
[1767381109254,6.6905835,3112.9,3112.1,5.56257507]
[1767381109659,2.47834614,3112.8,3112.1,2.34932275]
[1767381110238,3.21264497,3112.7,3112.1,2.34932275]
[1767381110440,3.21264497,3112.7,3111.9,3.21442334]
[1767381110733,3.21264497,3112.7,3111.9,0.96294104]
[1767381110938,3.21264497,3112.7,3112.0,0.001]
[1767381111125,5.69093852,3112.8,3112.0,0.001]
[1767381111550,5.69093852,3112.8,3112.0,3.21436303]
[1767381111748,2.47834614,3112.8,3112.1,3.21325796]
[1767381112151,5.69088875,3112.8,3112.0,5.56366389]
[1767381112325,6.76549148,3112.8,3112.0,2.35032275]
[1767381112531,3.55294887,3112.8,3112.1,2.34932275]
[1767381112857,5.69094746,3112.8,3112.1,2.34932275]
[1767381114756,2.47834614,3112.8,3112.2,2.34932275]
[1767381114956,4.05539213,3113.0,3112.2,2.34932275]
[1767381115456,6.53373827,3113.0,3112.2,2.34932275]
[1767381115658,0.97460007,3112.9,3112.2,2.34932275]
[1767381116025,3.45294621,3112.9,3112.2,2.34932275]
[1767381116543,3.45294621,3112.9,3112.2,5.56240608]
[1767381116731,4.05533815,3113.0,3112.3,2.34932275]
[1767381117570,2.47834614,3113.2,3112.3,2.34932275]
[1767381117732,3.32134614,3113.2,3112.3,2.34932275]
[1767381118873,0.002,3114.2,3113.2,2.34932275]
[1767381119075,0.002,3114.2,3112.4,16.23381852]
[1767381119076,0.002,3115.1,3114.3,2.34932275]
[1767381119369,1.27604519,3115.7,3115.4,3.315346]
[1767381119543,0.843,3115.6,3115.4,3.315346]
[1767381119744,1.28004519,3116.0,3115.4,3.315346]
[1767381119976,0.843,3115.9,3115.6,3.315346]
[1767381120276,0.21230452,3115.8,3115.6,3.315346]
[1767381120645,0.21230452,3115.8,3104.3,1.67673535]
[1767381120646,1.49034971,3115.8,3114.6,2.25796942]
[1767381120844,1.49034971,3115.8,3113.9,5.18231677]
[1767381120845,1.49034971,3115.8,3114.8,2.25796942]
[1767381121473,0.843,3115.7,3114.8,2.25796942]
[1767381123070,0.843,3115.7,3114.8,5.46843809]
[1767381123676,0.42648248,3115.6,3114.8,5.46843809]
[1767381124177,1.70452767,3115.6,3114.5,2.25796942]
[1767381124374,1.31816716,3115.5,3114.0,2.25796942]
[1767381124671,1.31816716,3115.5,3114.2,3.21103229]
[1767381124878,1.27804519,3115.1,3114.1,5.46908921]
[1767381125046,0.843,3115.0,3114.1,5.46908921]
[1767381125247,2.12104519,3115.0,3114.1,2.25796942]
[1767381125783,1.31817488,3114.9,3114.0,3.21129633]
[1767381125949,0.42648248,3115.6,3114.0,3.21129633]
[1767381125950,0.21230452,3115.8,3115.2,2.25796942]
[1767381126161,2.27555807,3116.7,3115.0,1.25554828]
[1767381126361,2.27555807,3116.7,3115.1,2.25796942]
[1767381126565,2.27555807,3116.5,3115.1,2.25796942]
[1767381126987,0.31185581,3116.6,3115.3,2.25796942]
[1767381127268,4.05141988,3116.8,3115.7,2.25796942]
[1767381127475,7.25983976,3116.8,3115.7,2.25796942]
[1767381127997,7.25983976,3116.8,3115.3,2.25796942]
[1767381127998,2.27555807,3116.7,3115.3,2.25796942]
[1767381128684,2.31566587,3116.6,3115.3,2.25796942]
[1767381128884,2.27555807,3116.6,3115.3,2.25796942]
[1767381129088,3.2088307,3116.4,3115.4,3.20986069]
[1767381129388,0.842,3116.3,3115.4,5.46783011]
[1767381130158,0.842,3116.3,3115.4,2.25796942]
[1767381130562,3.15766974,3116.3,3115.1,2.25796942]
[1767381130791,2.27555807,3116.2,3115.1,2.25796942]
[1767381131093,0.31175581,3116.1,3115.1,2.25796942]
[1767381131393,3.20924261,3116.0,3115.1,5.46810722]
[1767381131694,0.31175581,3116.1,3115.1,5.46810722]
[1767381131695,3.52093678,3116.1,3115.1,5.46810722]
[1767381131990,6.73011775,3116.1,3115.1,5.46810722]
[1767381132191,0.90056758,3116.0,3115.1,5.46810722]
[1767381132374,0.90056758,3116.0,3115.1,2.25796942]
[1767381132574,0.90056758,3116.0,3115.1,5.46813701]
[1767381133291,4.10981637,3116.0,3115.1,5.46813701]
[1767381133589,0.90056758,3116.0,3115.2,2.25796942]
[1767381133802,3.20924712,3116.0,3115.2,2.25796942]
[1767381134804,3.21124712,3116.0,3115.2,2.25796942]
[1767381135294,6.42049424,3116.0,3114.9,5.46827896]
[1767381135498,6.42049424,3116.0,3115.0,3.21025579]
[1767381135699,0.67322501,3115.9,3115.0,5.46822521]
[1767381135912,0.842,3115.8,3115.0,5.46822521]
[1767381136073,0.842,3115.8,3115.0,2.25796942]
[1767381136701,0.842,3115.8,3115.2,2.25796942]
[1767381137505,0.842,3115.8,3115.2,5.46801143]
[1767381137710,0.842,3116.2,3115.8,2.25796942]
[1767381138007,0.842,3116.2,3115.3,0.54680114]
[1767381138008,0.842,3116.6,3115.4,2.25796942]
[1767381138788,0.04010909,3116.5,3115.4,2.25796942]
[1767381138992,3.11755807,3116.6,3115.4,2.25796942]
[1767381139594,6.41745546,3116.5,3115.4,2.25796942]
[1767381139797,0.95350135,3116.4,3115.5,2.25796942]
[1767381141606,0.95350135,3116.4,3115.7,2.25796942]
[1767381141992,4.05066819,3116.6,3115.7,2.25796942]
[1767381142203,0.842,3116.6,3115.7,2.25796942]
[1767381142506,4.05067008,3116.6,3115.7,2.25796942]
[1767381142704,7.25934016,3116.6,3115.7,2.25796942]
[1767381144192,2.27555807,3116.5,3115.7,2.25796942]
[1767381144410,0.95348982,3116.4,3115.7,2.25796942]
[1767381145887,4.1624114,3116.4,3115.7,2.25796942]
[1767381147009,7.37133298,3116.4,3115.7,2.25796942]
[1767381147185,2.490494,3116.3,3115.4,5.46882329]
[1767381147385,0.9861827,3116.2,3115.4,2.25896942]
[1767381147606,0.842,3116.1,3115.4,2.25896942]
[1767381147802,0.842,3116.1,3115.4,5.4688085]
[1767381148003,0.842,3116.1,3115.5,2.27288241]
[1767381148507,3.21043751,3116.8,3115.5,2.27288241]
[1767381148508,2.490494,3116.5,3115.5,2.27288241]
[1767381148711,2.490494,3116.3,3115.4,0.001]
[1767381151114,0.842,3116.4,3115.4,0.001]
[1767381151115,2.34263842,3116.1,3115.4,0.001]
[1767381151310,2.34263842,3116.1,3114.8,5.62875295]
[1767381151489,2.34263842,3115.9,3115.1,2.41832759]
[1767381151686,1.19697483,3116.0,3115.3,2.41832759]
[1767381151687,0.842,3115.8,3115.3,2.41832759]
[1767381152090,3.20888167,3116.4,3115.6,2.41832759]
[1767381152091,0.842,3116.4,3115.6,2.41832759]
[1767381152285,3.18463842,3116.4,3115.8,0.0198328]
[1767381152700,3.18463842,3116.4,3115.2,3.21006676]
[1767381152701,2.34263842,3116.3,3115.2,3.21006676]
[1767381153411,2.34263842,3116.3,3115.3,2.41832759]
[1767381153722,2.34263842,3116.2,3115.3,2.41832759]
[1767381154018,2.34263842,3116.2,3115.1,3.21013513]
[1767381154019,2.38275266,3116.1,3115.1,8.83863568]
[1767381154197,3.18463842,3116.1,3115.2,2.41832759]
[1767381154402,2.58091369,3116.0,3115.2,2.41832759]
[1767381155218,3.20934561,3115.9,3115.2,2.41832759]
[1767381155408,2.34263842,3115.9,3115.2,2.41832759]
[1767381155607,2.34263842,3115.9,3115.0,3.2102325]
[1767381155804,2.34263842,3115.9,3115.1,0.32102325]
[1767381156125,2.34263842,3115.9,3115.0,3.21021199]
[1767381156126,2.34263842,3115.9,3114.9,2.41832759]
[1767381156331,4.05114091,3116.1,3115.3,2.41832759]
[1767381156535,7.26035628,3116.1,3115.3,2.41832759]
[1767381156730,2.34263842,3116.0,3115.0,5.62855418]
[1767381156919,2.66110226,3116.0,3115.1,3.21014887]
[1767381157236,2.66110226,3116.0,3115.0,2.41832759]
[1767381157237,2.34263842,3115.8,3115.0,2.41832759]
[1767381157535,2.34263842,3115.8,3114.5,2.41832759]
[1767381157939,2.34263842,3115.8,3115.0,3.21023623]
[1767381158940,2.34263842,3115.8,3114.9,3.21031832]
[1767381159140,3.25061777,3115.8,3115.0,3.21024771]
[1767381159433,2.34263842,3115.7,3114.8,5.62877283]
[1767381159608,0.842,3115.6,3115.1,0.001]
[1767381160743,3.21135239,3115.9,3115.1,0.001]
[1767381160744,0.002,3115.9,3115.5,2.41832759]
[1767381161309,0.002,3115.9,3115.5,2.66016035]
[1767381161503,0.002,3115.9,3115.6,3.20965464]
[1767381162016,5.55149326,3116.4,3115.6,3.20965464]
[1767381162216,2.34263842,3116.4,3115.6,3.20965464]
[1767381162609,0.842,3116.5,3115.6,8.69529467]
[1767381162815,0.842,3116.5,3115.7,2.27598539]
[1767381163240,4.05075115,3116.5,3115.7,2.27598539]
[1767381163605,4.05075115,3116.5,3115.7,5.48551378]
[1767381164552,4.05075115,3116.5,3115.7,5.48553089]
[1767381164750,4.05075115,3116.5,3115.7,2.27598539]
[1767381165046,5.01095272,3116.5,3115.7,5.48553172]
[1767381165430,7.35359114,3116.5,3115.7,2.27598539]
[1767381166246,2.34263842,3116.4,3115.5,3.4515602]
[1767381166751,2.34263842,3116.3,3115.5,3.20972744]
[1767381168350,2.34263842,3116.3,3115.4,3.20984817]
[1767381168553,2.34263842,3116.3,3115.4,6.41970886]
[1767381168739,2.34263842,3116.3,3115.4,8.69569425]
[1767381168941,5.55357737,3116.3,3115.4,5.48583356]
[1767381169147,2.89799616,3116.2,3115.1,0.001]
[1767381169348,2.89799616,3116.2,3115.1,2.27698539]
[1767381169928,2.89799616,3116.2,3115.3,3.20995582]
[1767381170328,6.10706486,3116.2,3115.3,2.27598539]
[1767381170545,6.10706486,3116.2,3115.3,2.82470091]
[1767381170752,5.55171201,3116.2,3115.3,2.82470091]
[1767381171058,2.34263842,3116.2,3115.3,0.54871552]
[1767381171226,3.20905104,3116.2,3115.3,2.82470091]
[1767381171429,5.55362449,3116.3,3115.3,2.82470091]
[1767381171634,2.34263842,3116.2,3115.4,0.28247009]
[1767381171840,0.002,3116.3,3115.3,2.82470091]
[1767381172045,3.21097099,3116.3,3115.3,2.82470091]
[1767381172435,0.002,3116.3,3115.5,2.27598539]
[1767381174054,2.34463842,3116.8,3115.9,2.27598539]
[1767381174224,5.55307277,3116.8,3115.9,2.27598539]
[1767381174427,5.55124878,3116.7,3115.9,2.50358393]
[1767381174637,2.34263842,3116.7,3115.9,0.22759854]
[1767381174862,3.21045557,3116.8,3115.9,0.22759854]
[1767381174863,0.002,3116.8,3116.0,2.27598539]
[1767381176343,0.002,3116.8,3116.1,5.48512501]
[1767381176544,0.002,3117.3,3116.5,2.27598539]
[1767381177137,2.34463842,3117.3,3116.5,2.27598539]
[1767381177733,2.34463842,3117.3,3116.2,2.27398539]
[1767381177968,0.002,3116.8,3116.3,0.95342646]
[1767381178176,2.34463842,3117.3,3116.6,2.27198539]
[1767381178177,0.002,3117.3,3116.6,2.27198539]
[1767381178339,2.34263842,3117.2,3116.4,3.2088307]
[1767381178547,2.34263842,3117.2,3116.5,0.73711873]
[1767381178756,0.002,3117.3,3116.5,0.73711873]
[1767381178757,2.34463842,3117.3,3116.5,0.73711873]
[1767381179185,2.34263842,3117.2,3116.5,0.73711873]
[1767381179573,2.34263842,3117.2,3116.4,3.2088307]
[1767381179747,2.34263842,3117.2,3116.4,6.4176614]
[1767381179951,0.002,3117.6,3117.2,2.43834405]
[1767381180248,2.39025344,3118.0,3116.6,2.43834405]
[1767381180448,2.62947878,3118.0,3116.9,6.4166319]
[1767381180643,2.39025344,3117.9,3116.8,5.64672217]
[1767381180875,2.39025344,3117.9,3115.7,3.62309151]
[1767381180876,2.39025344,3117.7,3116.6,3.20858127]
[1767381181049,2.39025344,3117.7,3116.7,3.20851152]
[1767381181250,2.39025344,3117.7,3116.8,3.20839718]
[1767381181483,2.39025344,3117.7,3116.4,2.43834405]
[1767381181484,2.39025344,3117.5,3116.6,3.20861594]
[1767381181690,2.39025344,3117.5,3116.7,3.20847341]
[1767381181852,2.39025344,3117.5,3116.8,3.2083887]
[1767381182513,0.842,3117.6,3116.8,2.43834405]
[1767381182866,0.002,3118.1,3116.8,2.43834405]
[1767381183101,0.002,3118.1,3117.0,2.43834405]
[1767381183299,2.39225344,3118.1,3117.0,2.43834405]
[1767381183694,0.002,3118.1,3117.2,2.43834405]
[1767381183888,0.842,3119.0,3117.2,2.43834405]
[1767381184075,0.842,3119.0,3117.6,2.43834405]
[1767381184396,0.842,3119.0,3117.7,2.43834405]
[1767381184600,2.39025344,3119.5,3117.9,2.43834405]
[1767381185172,2.39025344,3119.9,3119.0,0.0197311]
[1767381185496,3.20379147,3121.4,3119.0,0.0197311]
[1767381185497,3.20173956,3120.2,3119.0,0.0197311]
[1767381185703,2.7104274,3120.1,3119.0,0.0197311]
[1767381185870,0.81148612,3120.2,3119.0,2.45807515]
[1767381186467,6.40671741,3120.2,3119.1,3.20605302]
[1767381186699,2.39025344,3120.1,3119.0,0.0197311]
[1767381186900,2.39025344,3119.9,3119.0,0.0197311]
[1767381187101,0.842,3120.0,3119.0,0.0197311]
[1767381188096,3.23225344,3120.0,3119.0,0.0197311]
[1767381188297,0.32342534,3119.9,3119.0,0.0197311]
[1767381188909,0.842,3120.0,3119.1,2.43834405]
[1767381189101,6.43738677,3120.0,3119.0,0.0197311]
[1767381189309,2.39025344,3119.9,3119.0,0.0197311]
[1767381190303,2.39025344,3119.9,3118.2,5.15663703]
[1767381190304,2.39025344,3119.7,3117.6,2.43834405]
[1767381190513,0.04006667,3119.8,3117.5,5.15663703]
[1767381190514,2.39025344,3119.3,3117.8,6.41477964]
[1767381190714,6.41148938,3119.4,3118.0,2.43834405]
[1767381190715,3.23125344,3119.2,3118.0,2.43834405]
[1767381191015,2.39025344,3119.1,3118.0,2.43834405]
[1767381191403,0.841,3119.0,3118.0,2.43834405]
[1767381191608,0.24303201,3119.6,3118.0,2.43834405]
[1767381191805,2.39225344,3120.1,3118.4,2.43834405]
[1767381191984,0.841,3120.0,3118.4,2.43834405]
[1767381192184,3.23125344,3120.0,3118.4,2.43834405]
[1767381192616,6.4364551,3120.0,3118.6,2.43834405]
[1767381192811,0.002,3120.1,3118.7,5.15663703]
[1767381193015,0.002,3120.1,3118.5,6.41333974]
[1767381193016,0.002,3120.1,3119.2,2.43834405]
[1767381193311,0.843,3120.1,3119.2,2.43834405]
[1767381193515,0.843,3120.1,3118.8,2.95400775]
[1767381193820,0.002,3120.1,3118.8,2.43834405]
[1767381193995,0.841,3120.0,3118.8,2.43834405]
[1767381194181,0.002,3120.1,3118.8,2.43834405]
[1767381194389,0.841,3120.0,3118.8,2.43834405]
[1767381194697,0.841,3120.0,3119.0,2.43834405]
[1767381195021,0.841,3120.0,3118.9,6.41251722]
[1767381195022,0.841,3120.0,3119.1,3.32343018]
[1767381195505,4.04616117,3120.0,3119.1,3.32343018]
[1767381195820,0.841,3119.9,3119.1,3.32343018]
[1767381196115,0.841,3119.8,3119.1,3.32343018]
[1767381196608,0.841,3119.8,3119.1,2.43834405]
[1767381196790,0.841,3119.8,3118.7,2.43834405]
[1767381196986,0.841,3119.8,3118.8,3.20633554]
[1767381196987,4.0463721,3119.8,3118.8,3.20633554]
[1767381197191,4.0463721,3119.8,3118.7,2.43834405]
[1767381197392,4.0463721,3119.8,3118.8,3.20628201]
[1767381197604,0.40463721,3119.7,3118.8,3.20628201]
[1767381197923,0.40463721,3119.7,3118.7,2.43834405]
[1767381198417,2.39025344,3119.5,3118.3,2.43834405]
[1767381198598,2.39025344,3119.5,3118.0,0.001]
[1767381198599,2.39025344,3119.3,3118.0,0.001]